[Event "Rohde op 12th"]
[Site "Sautron"]
[Date "2012.10.31"]
[Round "6"]
[White "Oleksienko, Mikhailo"]
[Black "Koziak, Vitali"]
[Result "1-0"]
[ECO "B63"]
[WhiteElo "2539"]
[BlackElo "2503"]
[Annotator "Primel,D"]
[PlyCount "87"]
[EventDate "2012.10.27"]
[EventType "swiss"]
[EventRounds "9"]
[EventCountry "FRA"]
[SourceTitle "EXT 2014"]
[Source "ChessBase"]
[SourceDate "2013.11.20"]
[SourceVersion "1"]
[SourceVersionDate "2013.11.20"]
[SourceQuality "1"]
[TimeControl "40/5400+30:1800+30"]
[WhiteClock "1:30:00"]
[BlackClock "1:30:00"]

1. e4 {[%emt 0:00:00]} c5 {[%emt 0:00:00]} 2. Nf3 {[%emt 0:00:00]} Nc6 {
[%emt 0:00:19]} 3. d4 {[%emt 0:00:00]} cxd4 {[%emt 0:00:06]} 4. Nxd4 {[%emt 0:
00:00]} Nf6 {[%emt 0:00:32]} 5. Nc3 {[%emt 0:00:00]} d6 {[%emt 0:01:08]} 6. f3
{[%emt 0:00:19]} Qb6 {[%emt 0:00:51] Une ligne secondaire} (6... e5) (6... e6)
7. Nb3 {[%emt 0:00:28]} (7. Be3 $5 {Maleki,N (2119)-Bernard,C (2336) Syre
Memorial op 30th 2007 (2) 0-1}) 7... e6 {[%emt 0:03:55]} 8. Bg5 {[%emt 0:01:12]
} (8. Qe2 {[%cal Gc1e3]}) 8... Be7 {[%emt 0:07:03]} 9. Qd2 {[%emt 0:01:00]} O-O
{[%emt 0:03:17]} 10. O-O-O {[%emt 0:00:14]} Rd8 {[%emt 0:03:04]} (10... a6 {
L'alternative}) 11. Kb1 {[%emt 0:02:57]} (11. Nb5 Rd7 12. Be3 (12. Qe1)) 11...
a6 {[%emt 0:06:41]} 12. Be3 {[%emt 0:01:50]} Qc7 {[%emt 0:00:07]} 13. Qf2 {
[%emt 0:00:05][%csl Gb6]} Nd7 {[%emt 0:03:33]} 14. g4 {[%emt 0:01:35]} b5 {
[%emt 0:04:37]} 15. g5 {[%emt 0:00:20]} Nce5 {[%emt 0:04:25]} (15... b4 {
Tarasov,V-Ilivitzki,G RUS Ch 23th Cheliabinsk 1963 1/2}) 16. h4 {[%emt 0:09:20]
} b4 {[%emt 0:06:41]} 17. Na4 {[%emt 0:07:51]} Rb8 {[%emt 0:02:05][%csl Ra4]
[%cal Gc7c6]} 18. Nd2 $146 {[%emt 0:16:07]} (18. Nc1 Bb7 $132 {Szabo,Z (2431)
-Romanov,E (2591) Harkany Tenkes Cup 33rd 2009 (2) 0-1}) 18... Bb7 {[%emt 0:06:
36]} 19. b3 {[%emt 0:00:23]} d5 $1 {[%emt 0:03:00]} 20. exd5 {[%emt 0:04:51]}
Bxd5 {[%emt 0:00:32]} 21. Rg1 {[%emt 0:01:02]} (21. Ne4) 21... Bc6 {[%emt 0:06:
05]} 22. f4 {[%emt 0:13:50]} (22. Nb2 {[%csl Rb2]}) 22... Bxa4 {[%emt 0:02:32]}
(22... Ng6 23. h5 Ngf8 24. Nb2 a5 25. g6 $5 hxg6 26. hxg6 Nxg6 27. Bd3 Ngf8 28.
Nbc4 $44) 23. fxe5 {[%emt 0:00:20]} Bb5 {[%emt 0:05:32]} 24. h5 {[%emt 0:06:54]
} (24. Bxb5 axb5 $132 {[%csl Ra2]}) 24... Nxe5 {[%emt 0:04:09]} 25. g6 $6 {
[%emt 0:04:20]} (25. Bxb5) 25... hxg6 {[%emt 0:02:16]} 26. hxg6 {[%emt 0:00:39]
} Nxg6 {[%emt 0:02:19]} 27. Bh3 {[%emt 0:02:55][%cal Gh3e6]} Bh4 {[%emt 0:04:
03]} (27... Rbc8 {[%csl Rc2]} 28. Rc1 Qc3 $40 {[%cal Ge7f6]}) 28. Qf3 {[%emt 0:
02:47]} Rbc8 {[%emt 0:07:42]} 29. Rc1 {[%emt 0:00:18]} Bf6 {[%emt 0:03:58]} (
29... a5 30. Ne4) (29... Bc6 {[%csl Ge4]} 30. Qe2 Bd5) 30. Rxg6 {[%emt 0:08:13]
} fxg6 $2 {[%emt 0:00:19] Joué а tempo alors que les Noirs n'étaient pas en
gros zeitnot} (30... Bd3 $8 31. Rxf6 (31. Nc4 Bxg6 $19) 31... Bxc2+ 32. Kb2
Qc3#) 31. Bxe6+ {[%emt 0:00:10]} Kf8 {[%emt 0:00:14]} 32. Ne4 $8 {[%emt 0:01:
27]} (32. Bxc8 $4 Qe5) 32... Qe5 {[%emt 0:02:23]} 33. Nxf6 {[%emt 0:00:12]}
Qxe6 {[%emt 0:00:51]} 34. Nh7+ {[%emt 0:02:42]} Ke8 $4 {[%emt 0:03:56]} (34...
Kg8 35. Ng5) 35. Qf8+ {[%emt 0:02:29]} Kd7 {[%emt 0:00:01]} 36. Rd1+ {[%emt 0:
00:08]} Kc7 {[%emt 0:00:36]} 37. Qc5+ {[%emt 0:00:11]} Qc6 {[%emt 0:00:52]} 38.
Qa7+ {[%emt 0:00:09]} Qb7 {[%emt 0:00:06]} 39. Rxd8 {[%emt 0:00:42]} Rxd8 {
[%emt 0:00:59]} 40. Bb6+ $18 {[%emt 0:00:00]} Kc6 {[%emt 0:00:00]} 41. Qxb7+ {
[%emt 0:00:11]} Kxb7 {[%emt 0:00:14]} 42. Bxd8 {[%emt 0:00:05]} Kc6 {[%emt 0:
00:10]} 43. Be7 {[%emt 0:00:26]} a5 {[%emt 0:00:09]} 44. Bd8 {[%emt 0:00:03]}
1-0